[Event "Czech Open Rapid G1 2024"]
[Site "Pardubice"]
[Date "2024.07.18"]
[Round "4.31"]
[White "Dorokhina, Elizaveta"]
[Black "Sladek, Vladislav"]
[Result "1-0"]
[Annotator "RC"]
[ECO "D02"]
[WhiteElo "1962"]
[BlackElo "1928"]
[PlyCount "75"]
[EventDate "2024.07.16"]
[EventType "swiss"]
[EventCountry "CZE"]
[SourceTitle "playchess.com"]
[Source "ChessBase"]
[SourceQuality "1"]
[TimeControl "1200+10"]

1. d4 {[%emt 0:00:03]} d5 {[%emt 0:00:03]} 2. Nf3 {[%emt 0:00:03]} Nf6 {[%emt 0:00:06]} 3. Bf4 {[%emt 0:00:04]} c5 {[%emt 0:00:16]} 4. e3 {[%emt 0:00:05]} Nc6 {[%emt 0:00:06]} 5. Nbd2 {[%emt 0:00:02]} Bg4 {[%emt 0:00:29]} 6. c3 {[%emt 0:00:28]} e6 {[%emt 0:00:21]} 7. Qa4 {[%emt 0:00:32]} Bxf3 {[%emt 0:01:08]} 8. Nxf3 {[%emt 0:00:08]} Nd7 {[%emt 0:01:23]} 9. Bb5 {[%emt 0:01:07]} Qb6 {[%emt 0:00:26]} 10. O-O {[%emt 0:00:29]} Rc8 {[%emt 0:00:50]} 11. Rfc1 {[%emt 0:01:03]} a6 {[%emt 0:00:29]} 12. Bxc6 {[%emt 0:01:18]} Qxc6 {[%emt 0:01:07]} 13. Qc2 {[%emt 0:00:14]} Bd6 {[%emt 0:00:31]} 14. Qe2 {[%emt 0:00:46]} Nf6 {[%emt 0:00:51]} 15. Ne5 {[%emt 0:00:55]} Bxe5 {[%emt 0:00:57]} 16. Bxe5 {[%emt 0:00:05]} O-O {[%emt 0:02:21]} 17. Bxf6 {[%emt 0:01:25]} gxf6 {[%emt 0:00:04]} 18. Qg4+ {[%emt 0:00:54]} Kh8 {[%emt 0:00:06]} 19. Qf4 {[%emt 0:00:02]} f5 {[%emt 0:00:40]} 20. Qh6 {[%emt 0:00:10]} Rg8 {[%emt 0:00:53]} 21. Qf6+ {[%emt 0:00:16]} Rg7 {[%emt 0:00:02]} 22. g3 {[%emt 0:02:20]} Kg8 {[%emt 0:01:06]} 23. h4 {[%emt 0:02:41]} Rg6 {[%emt 0:00:58]} 24. Qe5 {[%emt 0:00:33]} Qc7 {[%emt 0:00:09]} 25. Qxc7 {[%emt 0:00:28]} Rxc7 {[%emt 0:00:03]} 26. c4 {[%emt 0:00:07]} cxd4 {[%emt 0:01:52]} 27. cxd5 {[%emt 0:00:02]} Rxc1+ {[%emt 0:01:34]} 28. Rxc1 {[%emt 0:00:01]} e5 {[%emt 0:02:24]} 29. exd4 {[%emt 0:00:11]} e4 {[%emt 0:02:13]} 30. Rc7 {[%emt 0:00:34]} Rd6 {[%emt 0:00:01]} 31. Rxb7 {[%emt 0:00:32]} Rxd5 {[%emt 0:00:03]} 32. Rb4 {[%emt 0:00:19]} Kg7 {[%emt 0:00:10]} 33. Kf1 {[%emt 0:00:03]} a5 {[%emt 0:00:55]} 34. Rc4 {[%emt 0:00:18]} Kg6 {[%emt 0:00:18]} 35. Ke2 {[%emt 0:00:07]} f4 {[%emt 0:00:48]} 36. gxf4 {[%emt 0:00:07]} f5 {[%emt 0:00:08]} 37. Ke3 {[%emt 0:00:09]} Rb5 {[%emt 0:00:14]} 38. b3 {[%emt 0:00:03]} 1-0

[Event "Czech Open Rapid G1 2024"]
[Site "Pardubice"]
[Date "2024.07.18"]
[Round "4.32"]
[White "Dobrowolski, Kamil"]
[Black "Garsky, Vladyslav"]
[Result "0-1"]
[Annotator "RC"]
[ECO "B10"]
[WhiteElo "1801"]
[BlackElo "2137"]
[PlyCount "60"]
[EventDate "2024.07.16"]
[EventType "swiss"]
[EventCountry "CZE"]
[SourceTitle "playchess.com"]
[Source "ChessBase"]
[SourceQuality "1"]
[TimeControl "1200+10"]

1. e4 {[%emt 0:04:17]} c6 {[%emt 0:00:21]} 2. Nf3 {[%emt 0:00:08]} d5 {[%emt 0:00:01]} 3. d3 {[%emt 0:00:02]} g6 {[%emt 0:00:06]} 4. Be2 {[%emt 0:00:46]} Bg7 {[%emt 0:00:02]} 5. O-O {[%emt 0:00:41]} e5 {[%emt 0:00:04]} 6. Nbd2 {[%emt 0:01:51]} Ne7 {[%emt 0:00:10]} 7. b3 {[%emt 0:00:45]} O-O {[%emt 0:01:02]} 8. Bb2 {[%emt 0:00:09]} Qd6 {[%emt 0:00:55]} 9. d4 {[%emt 0:01:27]} exd4 {[%emt 0:00:51]} 10. Bxd4 {[%emt 0:00:05]} Rd8 {[%emt 0:02:09]} 11. Bxg7 {[%emt 0:00:57]} Kxg7 {[%emt 0:00:01]} 12. exd5 {[%emt 0:00:12]} cxd5 {[%emt 0:00:59]} 13. Nd4 {[%emt 0:00:53]} Nbc6 {[%emt 0:00:22]} 14. N2f3 {[%emt 0:00:27]} Qf6 {[%emt 0:00:34]} 15. h3 {[%emt 0:00:39]} Nf5 {[%emt 0:00:14]} 16. c3 {[%emt 0:00:20]} Nd6 {[%emt 0:00:38]} 17. Bd3 {[%emt 0:01:54]} Bd7 {[%emt 0:02:06]} 18. Re1 {[%emt 0:00:48]} Rac8 {[%emt 0:00:14]} 19. Qd2 {[%emt 0:00:32]} Re8 {[%emt 0:00:46]} 20. Rxe8 {[%emt 0:03:21]} Rxe8 {[%emt 0:00:02]} 21. Qg5 {[%emt 0:00:36]} Qxg5 {[%emt 0:04:48]} 22. Nxg5 {[%emt 0:00:01]} Nxd4 {[%emt 0:00:01]} 23. cxd4 {[%emt 0:00:02]} Rc8 {[%emt 0:00:01]} 24. Kf1 {[%emt 0:01:07]} Bb5 {[%emt 0:00:39]} 25. Bxb5 {[%emt 0:01:13]} Nxb5 {[%emt 0:00:02]} 26. Nf3 {[%emt 0:00:04]} Rc2 {[%emt 0:00:21]} 27. Ke1 {[%emt 0:00:26]} Nc3 {[%emt 0:00:09]} 28. a3 {[%emt 0:00:13]} Ne4 {[%emt 0:00:30]} 29. g3 {[%emt 0:00:42]} Rxf2 {[%emt 0:00:19]} 30. Ne5 {[%emt 0:00:18]} Rh2 {[%emt 0:00:20]} 0-1

[Event "Czech Open Rapid G1 2024"]
[Site "Pardubice"]
[Date "2024.07.18"]
[Round "4.34"]
[White "Dolensky, Milan"]
[Black "Pipek, Petr"]
[Result "1-0"]
[Annotator "RC"]
[ECO "B23"]
[WhiteElo "1983"]
[BlackElo "1759"]
[PlyCount "93"]
[EventDate "2024.07.16"]
[EventType "swiss"]
[EventCountry "CZE"]
[SourceTitle "playchess.com"]
[Source "ChessBase"]
[SourceQuality "1"]
[TimeControl "1200+10"]

1. e4 {[%emt 0:00:03]} c5 {[%emt 0:00:02]} 2. Nc3 {[%emt 0:00:03]} Nc6 {[%emt 0:00:03]} 3. Bb5 {[%emt 0:00:02]} Nd4 {[%emt 0:00:13]} 4. Nf3 {[%emt 0:00:02]} a6 {[%emt 0:00:09]} 5. Bd3 {[%emt 0:00:11]} d6 {[%emt 0:00:12]} 6. Nxd4 {[%emt 0:00:09]} cxd4 {[%emt 0:00:02]} 7. Ne2 {[%emt 0:00:02]} e5 {[%emt 0:00:11]} 8. c3 {[%emt 0:00:08]} dxc3 {[%emt 0:00:43]} 9. dxc3 {[%emt 0:00:19]} Be6 {[%emt 0:00:19]} 10. c4 {[%emt 0:00:10]} Be7 {[%emt 0:00:21]} 11. O-O {[%emt 0:00:03]} Nf6 {[%emt 0:00:02]} 12. b3 {[%emt 0:00:12]} O-O {[%emt 0:00:22]} 13. h3 {[%emt 0:00:21]} Nd7 {[%emt 0:01:39]} 14. f4 {[%emt 0:00:55]} Nc5 {[%emt 0:02:31]} 15. f5 {[%emt 0:00:17]} Bd7 {[%emt 0:01:14]} 16. Kh2 {[%emt 0:01:22]} Bc6 {[%emt 0:01:19]} 17. Nc3 {[%emt 0:00:05]} Qc7 {[%emt 0:04:25]} 18. Be3 {[%emt 0:01:18]} Qa5 {[%emt 0:03:24]} 19. Nd5 {[%emt 0:02:35]} Bxd5 {[%emt 0:00:11]} 20. exd5 {[%emt 0:00:02]} Rfc8 {[%emt 0:02:03]} 21. Bc2 {[%emt 0:02:01]} Qc3 {[%emt 0:02:56]} 22. Qe2 {[%emt 0:00:36]} Bh4 {[%emt 0:00:37]} 23. Rac1 {[%emt 0:00:12]} Qa5 {[%emt 0:00:23]} 24. f6 {[%emt 0:00:24]} Bxf6 {[%emt 0:00:20]} 25. Rxf6 {[%emt 0:00:10]} gxf6 {[%emt 0:00:01]} 26. Qh5 {[%emt 0:00:24]} Kf8 {[%emt 0:00:26]} 27. Qxh7 {[%emt 0:00:12]} Ke7 {[%emt 0:00:14]} 28. Bg6 {[%emt 0:00:04]} Rf8 {[%emt 0:00:01]} 29. Bh6 {[%emt 0:00:04]} Nd7 {[%emt 0:00:04]} 30. Rf1 {[%emt 0:00:17]} Qd8 {[%emt 0:00:19]} 31. Bh5 {[%emt 0:00:29]} Qe8 {[%emt 0:00:06]} 32. Bxf8+ {[%emt 0:00:16]} Qxf8 {[%emt 0:00:12]} 33. Bg4 {[%emt 0:00:09]} Qg8 {[%emt 0:00:23]} 34. Qxg8 {[%emt 0:00:22]} Rxg8 {[%emt 0:00:01]} 35. Bxd7 {[%emt 0:00:05]} Kxd7 {[%emt 0:00:01]} 36. Rxf6 {[%emt 0:00:06]} Ke7 {[%emt 0:00:25]} 37. Rf2 {[%emt 0:00:01]} Rg5 {[%emt 0:00:14]} 38. g4 {[%emt 0:00:03]} e4 {[%emt 0:00:09]} 39. Kg3 {[%emt 0:00:04]} Re5 {[%emt 0:00:01]} 40. Kf4 {[%emt 0:00:19]} Kf6 {[%emt 0:00:04]} 41. h4 {[%emt 0:00:11]} Kg6 {[%emt 0:00:08]} 42. Re2 {[%emt 0:00:01]} f5 {[%emt 0:00:12]} 43. gxf5+ {[%emt 0:00:17]} Rxf5+ {[%emt 0:00:10]} 44. Kxe4 {[%emt 0:00:08]} Re5+ {[%emt 0:00:21]} 45. Kd3 {[%emt 0:00:01]} Rxe2 {[%emt 0:00:14]} 46. Kxe2 {[%emt 0:00:01]} Kh5 {[%emt 0:00:01]} 47. c5 {[%emt 0:00:11]} 1-0

[Event "Czech Open Rapid G1 2024"]
[Site "Pardubice"]
[Date "2024.07.18"]
[Round "4.35"]
[White "Gu In-Jung"]
[Black "Flasar, Jaroslav"]
[Result "0-1"]
[Annotator "RC"]
[ECO "C00"]
[WhiteElo "1960"]
[BlackElo "2012"]
[PlyCount "136"]
[EventDate "2024.07.16"]
[EventType "swiss"]
[EventCountry "CZE"]
[SourceTitle "playchess.com"]
[Source "ChessBase"]
[SourceQuality "1"]
[TimeControl "1200+10"]

1. e4 {[%emt 0:00:02]} c5 {[%emt 0:00:04]} 2. Nf3 {[%emt 0:00:04]} e6 {[%emt 0:00:02]} 3. d3 {[%emt 0:00:01]} Nc6 {[%emt 0:00:05]} 4. g3 {[%emt 0:00:01]} Nf6 {[%emt 0:00:06]} 5. Bg2 {[%emt 0:00:02]} d5 {[%emt 0:00:06]} 6. Nbd2 {[%emt 0:00:01]} Be7 {[%emt 0:00:08]} 7. O-O {[%emt 0:00:02]} O-O {[%emt 0:00:20]} 8. e5 {[%emt 0:00:41]} Nd7 {[%emt 0:00:08]} 9. Re1 {[%emt 0:00:01]} Qc7 {[%emt 0:00:19]} 10. Qe2 {[%emt 0:00:02]} b5 {[%emt 0:01:05]} 11. Nf1 {[%emt 0:00:02]} Ba6 {[%emt 0:01:09]} 12. Bf4 {[%emt 0:00:29]} Nb6 {[%emt 0:00:36]} 13. h4 {[%emt 0:01:27]} d4 {[%emt 0:01:52]} 14. Ng5 {[%emt 0:00:00]} h6 {[%emt 0:01:17]} 15. Qh5 {[%emt 0:03:26]} Bb7 {[%emt 0:05:26]} 16. Ne4 {[%emt 0:05:10]} Nd5 {[%emt 0:00:59]} 17. Nh2 {[%emt 0:02:32]} Nxf4 {[%emt 0:01:27]} 18. gxf4 {[%emt 0:00:00]} f5 {[%emt 0:02:23]} 19. Ng5 {[%emt 0:00:13]} Qc8 {[%emt 0:01:56]} 20. Nhf3 {[%emt 0:01:47]} Nb4 {[%emt 0:00:25]} 21. Kh2 {[%emt 0:04:55]} Nxc2 {[%emt 0:00:23]} 22. Qg6 {[%emt 0:00:37]} hxg5 {[%emt 0:00:17]} 23. hxg5 {[%emt 0:00:05]} Qe8 {[%emt 0:00:13]} 24. Qxe6+ {[%emt 0:00:02]} Qf7 {[%emt 0:00:01]} 25. Qd7 {[%emt 0:00:04]} Bd8 {[%emt 0:00:30]} 26. Qxf7+ {[%emt 0:00:29]} Rxf7 {[%emt 0:00:02]} 27. Kg3 {[%emt 0:01:51]} Nxe1 {[%emt 0:00:04]} 28. Rxe1 {[%emt 0:00:02]} Rc8 {[%emt 0:00:17]} 29. Bh3 {[%emt 0:00:02]} Bxf3 {[%emt 0:00:09]} 30. Kxf3 {[%emt 0:00:01]} g6 {[%emt 0:00:01]} 31. Bf1 {[%emt 0:00:09]} Bb6 {[%emt 0:00:03]} 32. b3 {[%emt 0:00:05]} a5 {[%emt 0:00:02]} 33. Kg3 {[%emt 0:00:14]} Rfc7 {[%emt 0:00:03]} 34. Bg2 {[%emt 0:00:03]} Kg7 {[%emt 0:00:12]} 35. Bd5 {[%emt 0:00:37]} Re8 {[%emt 0:00:04]} 36. a4 {[%emt 0:00:08]} bxa4 {[%emt 0:00:07]} 37. bxa4 {[%emt 0:00:01]} Rb8 {[%emt 0:00:03]} 38. Bc4 {[%emt 0:00:02]} Ba7 {[%emt 0:00:05]} 39. Bb5 {[%emt 0:00:03]} Rh8 {[%emt 0:00:20]} 40. Rb1 {[%emt 0:00:06]} Kf8 {[%emt 0:00:12]} 41. Bc4 {[%emt 0:00:01]} Ke7 {[%emt 0:00:29]} 42. Rb5 {[%emt 0:00:01]} Rb8 {[%emt 0:00:10]} 43. Rxa5 {[%emt 0:00:05]} Rb6 {[%emt 0:00:32]} 44. Kf3 {[%emt 0:00:02]} Kd8 {[%emt 0:00:33]} 45. Ke2 {[%emt 0:00:13]} Kc8 {[%emt 0:00:01]} 46. Kd2 {[%emt 0:00:04]} Kb8 {[%emt 0:00:30]} 47. Bd5 {[%emt 0:00:12]} Rb2+ {[%emt 0:00:29]} 48. Ke1 {[%emt 0:00:05]} Rh7 {[%emt 0:00:34]} 49. Ra6 {[%emt 0:00:01]} Rb6 {[%emt 0:00:02]} 50. Ra5 {[%emt 0:00:02]} Rb1+ {[%emt 0:00:05]} 51. Ke2 {[%emt 0:00:03]} Rh2 {[%emt 0:00:01]} 52. Ra6 {[%emt 0:00:42]} Rb2+ {[%emt 0:00:03]} 53. Ke1 {[%emt 0:00:10]} Rhxf2 {[%emt 0:00:15]} 54. Rxg6 {[%emt 0:00:02]} Rfe2+ {[%emt 0:00:04]} 55. Kd1 {[%emt 0:00:10]} Rf2 {[%emt 0:00:25]} 56. Ke1 {[%emt 0:00:05]} c4 {[%emt 0:00:23]} 57. Rg8+ {[%emt 0:00:04]} Kc7 {[%emt 0:00:00]} 58. Rg7+ {[%emt 0:00:00]} Kb6 {[%emt 0:00:02]} 59. Rb7+ {[%emt 0:00:10]} Ka6 {[%emt 0:00:01]} 60. Rxb2 {[%emt 0:00:10]} Rxb2 {[%emt 0:00:01]} 61. g6 {[%emt 0:00:01]} c3 {[%emt 0:00:14]} 62. g7 {[%emt 0:00:42]} Rb1+ {[%emt 0:00:14]} 63. Kf2 {[%emt 0:00:06]} c2 {[%emt 0:00:03]} 64. g8=Q {[%emt 0:00:04]} c1=Q {[%emt 0:00:04]} 65. Bc4+ {[%emt 0:00:01]} Ka5 {[%emt 0:00:08]} 66. Qd5+ {[%emt 0:02:01]} Kb4 {[%emt 0:00:06]} 67. Qb5+ {[%emt 0:00:09]} Ka3 {[%emt 0:00:12]} 68. Qd7 {[%emt 0:00:07]} Qe3+ {[%emt 0:00:05]} 0-1

[Event "Czech Open Rapid G1 2024"]
[Site "Pardubice"]
[Date "2024.07.18"]
[Round "4.36"]
[White "Dehmel, Jens"]
[Black "Moeller, Tom"]
[Result "1-0"]
[Annotator "RC"]
[ECO "D31"]
[WhiteElo "1980"]
[BlackElo "1842"]
[PlyCount "69"]
[EventDate "2024.07.16"]
[EventType "swiss"]
[EventCountry "CZE"]
[SourceTitle "playchess.com"]
[Source "ChessBase"]
[SourceQuality "1"]
[TimeControl "1200+10"]

1. d4 {[%emt 0:00:02]} d5 {[%emt 0:07:38]} 2. c4 {[%emt 0:00:01]} e6 {[%emt 0:00:01]} 3. Nc3 {[%emt 0:00:03]} c6 {[%emt 0:00:02]} 4. Nf3 {[%emt 0:00:01]} dxc4 {[%emt 0:00:01]} 5. e3 {[%emt 0:00:02]} b5 {[%emt 0:00:05]} 6. a4 {[%emt 0:00:02]} Bb4 {[%emt 0:00:15]} 7. Bd2 {[%emt 0:00:02]} Bb7 {[%emt 0:00:18]} 8. axb5 {[%emt 0:00:32]} Bxc3 {[%emt 0:00:05]} 9. Bxc3 {[%emt 0:00:05]} cxb5 {[%emt 0:00:01]} 10. b3 {[%emt 0:00:04]} a5 {[%emt 0:00:07]} 11. bxc4 {[%emt 0:00:09]} b4 {[%emt 0:00:04]} 12. Bb2 {[%emt 0:00:21]} Nf6 {[%emt 0:00:45]} 13. Bd3 {[%emt 0:00:02]} Nbd7 {[%emt 0:01:22]} 14. O-O {[%emt 0:00:06]} O-O {[%emt 0:00:47]} 15. Nd2 {[%emt 0:00:08]} Nc5 {[%emt 0:01:21]} 16. Bc2 {[%emt 0:00:16]} Nce4 {[%emt 0:00:20]} 17. f3 {[%emt 0:01:50]} Nxd2 {[%emt 0:03:48]} 18. Qxd2 {[%emt 0:00:01]} Bc6 {[%emt 0:00:45]} 19. e4 {[%emt 0:02:01]} Qb6 {[%emt 0:01:11]} 20. Kh1 {[%emt 0:00:25]} a4 {[%emt 0:00:11]} 21. d5 {[%emt 0:00:33]} Bd7 {[%emt 0:00:57]} 22. e5 {[%emt 0:08:07]} Ne8 {[%emt 0:01:19]} 23. f4 {[%emt 0:00:01]} a3 {[%emt 0:00:10]} 24. Bd4 {[%emt 0:00:04]} Qb7 {[%emt 0:01:00]} 25. Bc5 {[%emt 0:01:43]} b3 {[%emt 0:00:41]} 26. Rfb1 {[%emt 0:00:05]} b2 {[%emt 0:00:49]} 27. Rxa3 {[%emt 0:00:08]} exd5 {[%emt 0:00:03]} 28. cxd5 {[%emt 0:00:09]} Nc7 {[%emt 0:00:07]} 29. Be4 {[%emt 0:00:37]} Rfb8 {[%emt 0:00:27]} 30. Rxa8 {[%emt 0:00:52]} Nxa8 {[%emt 0:00:02]} 31. Bd4 {[%emt 0:00:21]} Bb5 {[%emt 0:00:24]} 32. Qxb2 {[%emt 0:00:39]} Nc7 {[%emt 0:00:03]} 33. Qb3 {[%emt 0:01:41]} Na6 {[%emt 0:00:07]} 34. Bd3 {[%emt 0:00:41]} Qd7 {[%emt 0:00:17]} 35. Bxb5 {[%emt 0:00:15]} 1-0

[Event "Czech Open Rapid G1 2024"]
[Site "Pardubice"]
[Date "2024.07.18"]
[Round "5.1"]
[White "Nisipeanu, Liviu-Dieter"]
[Black "Navara, David"]
[Result "1/2-1/2"]
[Annotator "TA"]
[ECO "E52"]
[WhiteElo "2583"]
[BlackElo "2682"]
[PlyCount "84"]
[EventDate "2024.07.16"]
[EventType "swiss"]
[EventCountry "CZE"]
[SourceTitle "playchess.com"]
[Source "ChessBase"]
[SourceQuality "1"]
[TimeControl "1200+10"]

{[%evp 19,84,0,14,6,20,9,16,12,17,18,2,1,11,0,0,0,11,0,0,0,6,6,0,0,24,14,12,11,23,13,63,20,30,1,14,0,20,20,20,22,22,4,49,75,81,81,82,82,82,82,82,82,82,82,82,82,82,82,82,82,82,43,43,43,43,15,15]} 1. d4 {[%emt 0:00:03]} Nf6 {[%emt 0:00:03]} 2. c4 {[%emt 0:00:02]} e6 {[%emt 0:00:02]} 3. Nc3 {[%emt 0:00:02]} Bb4 {[%emt 0:00:02]} 4. e3 {[%emt 0:00:02]} O-O {[%emt 0:00:17]} 5. Bd3 {[%emt 0:00:14]} d5 {[%emt 0:00:15]} 6. Nf3 {[%emt 0:00:06]} b6 {[%emt 0:00:38]} 7. O-O {[%emt 0:00:13]} Bb7 {[%emt 0:00:02]} 8. a3 {[%emt 0:00:33]} Bd6 {[%emt 0:00:04]} 9. b4 {[%emt 0:01:00]} dxc4 {[%emt 0:00:11]} 10. Bxc4 {[%emt 0:00:02]} a5 {[%emt 0:00:23]} 11. Rb1 {[%emt 0:02:56]} axb4 12. axb4 {[%emt 0:00:02]} Qe7 {[%emt 0:03:50]} 13. b5 {[%emt 0:02:26]} Nbd7 {[%emt 0:00:02]} 14. Bb2 {[%emt 0:01:20]} e5 {[%emt 0:00:45] [#]} 15. Nd5 $1 {[%emt 0:02:07]} Nxd5 {[%emt 0:06:04]} 16. Bxd5 {[%emt 0:00:40]} Bxd5 {[%emt 0:00:06]} 17. dxe5 {[%emt 0:00:02]} Nxe5 {[%emt 0:00:32]} 18. Qxd5 {[%emt 0:00:04]} Nxf3+ {[%emt 0:02:00]} 19. Qxf3 {[%emt 0:00:02]} Be5 {[%emt 0:03:04]} 20. Bxe5 {[%emt 0:00:21]} Qxe5 {[%emt 0:00:02]} 21. Rfd1 {[%emt 0:01:29][%cal Bf1d1,Bd1d5,Bd5d7][%mdl 32]} Ra2 {[%emt 0:00:20][%cal Ba8a2,Ba2c2,Bc2c5][%mdl 32]} 22. g3 {[%emt 0:02:08]} g6 {[%emt 0:00:36]} 23. Rd5 {[%emt 0:00:25]} Qc3 {[%emt 0:00:24]} 24. Kg2 {[%emt 0:01:15]} Kg7 {[%emt 0:00:55]} (24... Rc2 $11) 25. Rd7 {[%emt 0:00:14]} Rc2 {[%emt 0:01:33]} 26. h4 {[%emt 0:00:37]} (26. Qe4 {is interesting.} Qc4 27. Rb4 Qe2 28. Qf3) 26... h5 {[%emt 0:00:27]} 27. Rbd1 {[%emt 0:00:45][%cal Bb1d1,Bd1d4,Bd4f4][%mdl 32]} Qf6 {[%emt 0:00:03]} 28. R1d4 {[%emt 0:00:47]} Qxf3+ {[%emt 0:00:09]} 29. Kxf3 $11 {[%emt 0:00:02][%mdl 4096] Endgame. KRR-KRR} Rc5 {[%emt 0:00:24]} 30. Rf4 {[%emt 0:00:07]} Rxb5 {[%emt 0:00:43]} 31. Rxc7 {[%emt 0:00:01]} Rc5 {[%emt 0:00:01]} 32. Rb7 {[%emt 0:00:05]} b5 {[%emt 0:00:02]} 33. Rb4 {[%emt 0:00:21] White is more active.} Rfc8 {[%emt 0:00:07]} 34. R4xb5 {[%emt 0:00:08]} ({Don't take} 34. R7xb5 R5c6 $16) 34... Rxb5 {[%emt 0:00:02]} 35. Rxb5 $16 {[%emt 0:00:01] KR-KR} Rc2 {[%emt 0:00:17]} 36. e4 {[%emt 0:00:02]} Ra2 {[%emt 0:00:04]} 37. Ke3 {[%emt 0:00:01]} Ra3+ {[%emt 0:00:10]} 38. Kf4 {[%emt 0:00:02]} Ra2 {[%emt 0:00:02]} 39. f3 {[%emt 0:00:01]} Ra3 {[%emt 0:00:39]} 40. g4 {[%emt 0:00:11]} hxg4 {[%emt 0:00:02]} 41. Kxg4 {[%emt 0:00:01]} Ra1 {[%emt 0:00:28]} 42. h5 {[%emt 0:00:03]} f5+ $1 {[%emt 0:00:47] Weighted Error Value: White=0.09 (flawless) /Black=0.08 (flawless) .  Mistake:       	---       	Black=1      Inaccurate:     	White=4     	Black=1      OK:         	White=8     	Black=10     Best:        	White=2     	Black=1      Strong:       	---       	Black=1} 1/2-1/2